[Event "44th Chess Olympiad Women 2022"]
[Site "Chennai"]
[Date "2022.08.02"]
[Round "5.25"]
[White "Zhang, Jilin"]
[Black "Gitu, Paula-Alexandra"]
[Result "1/2-1/2"]
[ECO "B08"]
[WhiteElo "2212"]
[BlackElo "2109"]
[Annotator "RC"]
[PlyCount "143"]
[EventDate "2022.07.29"]
[EventType "team-tourn"]
[EventCountry "IND"]
[SourceTitle "playchess.com"]
[Source "ChessBase"]
[SourceQuality "1"]
[WhiteTeam "Australia"]
[BlackTeam "Moldova"]
[WhiteTeamCountry "AUS"]
[BlackTeamCountry "MDA"]
[TimeControl "40/5400+30:1800+30"]

1. e4 {[%emt 0:00:02]} d6 {[%emt 0:00:04]} 2. d4 {[%emt 0:00:07]} Nf6 {[%emt 0:00:04]} 3. Nc3 {[%emt 0:00:07]} g6 {[%emt 0:00:05]} 4. Nf3 {[%emt 0:00:58]} Bg7 {[%emt 0:00:16]} 5. Be2 {[%emt 0:00:48]} O-O {[%emt 0:01:18]} 6. h3 {[%emt 0:02:03]} c6 {[%emt 0:03:37]} 7. Bg5 {[%emt 0:02:08]} Qc7 {[%emt 0:03:06]} 8. Qd2 {[%emt 0:03:32]} Nbd7 {[%emt 0:12:00]} 9. Bh6 {[%emt 0:02:22]} b5 {[%emt 0:01:17]} 10. a3 {[%emt 0:03:17]} a5 {[%emt 0:07:21]} 11. Bxg7 {[%emt 0:01:50]} Kxg7 {[%emt 0:03:38]} 12. O-O {[%emt 0:03:43]} Bb7 {[%emt 0:02:50]} 13. b4 {[%emt 0:04:57]} Rfd8 {[%emt 0:08:20]} 14. Qe3 {[%emt 0:04:15]} e5 {[%emt 0:03:03]} 15. Bd3 {[%emt 0:03:50]} Re8 {[%emt 0:04:28]} 16. dxe5 {[%emt 0:06:34]} dxe5 {[%emt 0:00:29]} 17. Rfd1 {[%emt 0:07:17]} Nf8 {[%emt 0:10:40]} 18. Ne2 {[%emt 0:06:49]} Qe7 {[%emt 0:04:49]} 19. c3 {[%emt 0:04:38]} Rec8 {[%emt 0:08:23]} 20. Qg5 {[%emt 0:02:55]} Re8 {[%emt 0:03:44]} 21. Ng3 {[%emt 0:05:38]} Bc8 {[%emt 0:04:15]} 22. Qe3 {[%emt 0:06:02]} N6d7 {[%emt 0:05:57]} 23. Bc2 {[%emt 0:08:14]} Ne6 {[%emt 0:02:37]} 24. Bb3 {[%emt 0:00:18]} f6 {[%emt 0:00:34]} 25. Ne1 {[%emt 0:02:14]} Nf4 {[%emt 0:05:51]} 26. Nd3 {[%emt 0:00:16]} Nxd3 {[%emt 0:00:25]} 27. Qxd3 {[%emt 0:00:25]} Nf8 {[%emt 0:00:15]} 28. Qd6 {[%emt 0:03:51]} Be6 {[%emt 0:00:17]} 29. Bxe6 {[%emt 0:02:12]} Qxe6 {[%emt 0:00:09]} 30. Qc7+ {[%emt 0:00:46]} Re7 {[%emt 0:00:14]} 31. Qb6 {[%emt 0:00:33]} axb4 {[%emt 0:04:43]} 32. cxb4 {[%emt 0:02:01]} Raa7 {[%emt 0:01:07]} 33. Rac1 {[%emt 0:03:21]} Rac7 {[%emt 0:00:08]} 34. Rd8 {[%emt 0:01:00]} Red7 {[%emt 0:00:46]} 35. Qb8 {[%emt 0:01:03]} Qe7 {[%emt 0:00:22]} 36. Re8 {[%emt 0:02:14]} Qf7 {[%emt 0:00:03]} 37. Rc8 {[%emt 0:02:05]} Rxc8 {[%emt 0:00:44]} 38. Qxc8 {[%emt 0:00:08]} Rc7 {[%emt 0:00:04]} 39. Qg4 {[%emt 0:01:51]} Kh8 {[%emt 0:00:45]} 40. f4 {[%emt 0:01:48]} Qd7 {[%emt 0:01:02]} 41. Qh4 {[%emt 0:05:06]} Qd4+ {[%emt 0:14:36]} 42. Kh1 {[%emt 0:04:18]} exf4 {[%emt 0:00:09]} 43. Qxf4 {[%emt 0:00:22]} Ne6 {[%emt 0:00:23]} 44. Qg4 {[%emt 0:03:46]} Qe5 {[%emt 0:01:39]} 45. Nf1 {[%emt 0:04:05]} Ng5 {[%emt 0:10:14]} 46. Qg3 {[%emt 0:04:39]} Nxe4 {[%emt 0:00:52]} 47. Qxe5 {[%emt 0:00:08]} fxe5 {[%emt 0:00:02]} 48. Re1 {[%emt 0:00:08]} Nf2+ {[%emt 0:00:13]} 49. Kg1 {[%emt 0:01:37]} Nd3 {[%emt 0:00:05]} 50. Re3 {[%emt 0:02:38]} Rd7 {[%emt 0:00:13]} 51. Nh2 {[%emt 0:00:52]} Kg7 {[%emt 0:00:36]} 52. Ng4 {[%emt 0:01:07]} Rd5 {[%emt 0:00:13]} 53. Nf2 {[%emt 0:00:16]} Nxf2 {[%emt 0:05:45]} 54. Kxf2 {[%emt 0:00:04]} Kf6 {[%emt 0:00:47]} 55. Rc3 {[%emt 0:00:09]} Rd6 {[%emt 0:00:03]} 56. Ke3 {[%emt 0:00:31]} Ke7 {[%emt 0:01:28]} 57. Rc2 {[%emt 0:03:20]} Kd7 {[%emt 0:01:10]} 58. Rf2 {[%emt 0:00:17]} Ke6 {[%emt 0:00:24]} 59. Rc2 {[%emt 0:00:11]} Ke7 {[%emt 0:00:35]} 60. Ke4 {[%emt 0:00:40]} Ke6 {[%emt 0:00:14]} 61. Ke3 {[%emt 0:00:10]} Kd7 {[%emt 0:00:50]} 62. Rf2 {[%emt 0:00:20]} h6 {[%emt 0:00:23]} 63. Rf8 {[%emt 0:04:17]} Ke6 {[%emt 0:00:17]} 64. g4 {[%emt 0:02:10]} Kd5 {[%emt 0:00:49]} 65. h4 {[%emt 0:01:40]} Ke6 {[%emt 0:00:28]} 66. Rc8 {[%emt 0:01:21]} Kd7 {[%emt 0:00:37]} 67. Rg8 {[%emt 0:00:14]} Ke7 {[%emt 0:00:28]} 68. Rc8 {[%emt 0:01:14]} Kf6 {[%emt 0:00:36]} 69. Rf8+ {[%emt 0:00:12]} Ke6 {[%emt 0:00:17]} 70. Rc8 {[%emt 0:00:07]} Kf6 {[%emt 0:00:39]} 71. Rf8+ {[%emt 0:00:18]} Ke6 {[%emt 0:00:34]} 72. Ke4 {[%emt 0:00:29]} 1/2-1/2

[Event "44th Chess Olympiad Women 2022"]
[Site "Chennai"]
[Date "2022.08.02"]
[Round "5.25"]
[White "Nguyen, Thu Giang"]
[Black "Petricenco, Ana"]
[Result "1-0"]
[ECO "B18"]
[WhiteElo "2119"]
[BlackElo "1912"]
[Annotator "NA RC"]
[PlyCount "117"]
[EventDate "2022.07.29"]
[EventType "team-tourn"]
[EventCountry "IND"]
[SourceTitle "playchess.com"]
[Source "ChessBase"]
[SourceQuality "1"]
[WhiteTeam "Australia"]
[BlackTeam "Moldova"]
[WhiteTeamCountry "AUS"]
[BlackTeamCountry "MDA"]
[TimeControl "40/5400+30:1800+30"]

1. e4 {[%emt 0:00:03]} c6 {[%emt 0:00:06]} 2. d4 {[%emt 0:00:09]} d5 {[%emt 0:00:06]} 3. Nc3 {[%emt 0:00:27]} dxe4 {[%emt 0:00:10]} 4. Nxe4 {[%emt 0:00:09]} Bf5 {[%emt 0:00:10]} 5. Ng3 {[%emt 0:00:09]} Bg6 {[%emt 0:00:07]} 6. Nh3 {[%emt 0:00:33]} Nf6 {[%emt 0:00:54]} 7. Bc4 {[%emt 0:00:17]} e6 {[%emt 0:13:14]} 8. Nf4 {[%emt 0:02:12]} Bd6 {[%emt 0:00:28]} 9. O-O {[%emt 0:00:31]} O-O {[%emt 0:00:45]} 10. c3 {[%emt 0:02:16]} Nbd7 {[%emt 0:06:22]} 11. Nxg6 {[%emt 0:00:43]} hxg6 {[%emt 0:00:07]} 12. Bb3 {[%emt 0:07:52]} Nb6 {[%emt 0:02:22]} 13. Bg5 {[%emt 0:01:14]} Qd7 {[%emt 0:05:42]} 14. Qf3 {[%emt 0:01:26]} Be7 {[%emt 0:00:18]} 15. Rfd1 {[%emt 0:02:49]} Nfd5 {[%emt 0:06:10]} 16. Bd2 {[%emt 0:00:56]} a5 {[%emt 0:02:35]} 17. a3 {[%emt 0:03:26]} a4 {[%emt 0:04:22]} 18. Ba2 {[%emt 0:00:16]} Nf6 {[%emt 0:04:11]} 19. c4 {[%emt 0:10:41]} Rfd8 {[%emt 0:06:30]} 20. Bc3 {[%emt 0:01:45]} Nh7 {[%emt 0:03:24]} 21. h3 {[%emt 0:05:17]} Nf6 {[%emt 0:05:08]} 22. Nf1 {[%emt 0:02:30]} Qc7 {[%emt 0:07:34]} 23. Ne3 {[%emt 0:01:18]} Nh5 {[%emt 0:03:15]} 24. g3 {[%emt 0:02:52]} Nf6 {[%emt 0:02:22]} 25. Rd2 {[%emt 0:01:03]} Nh7 {[%emt 0:05:35]} 26. Rad1 {[%emt 0:01:57]} Ng5 {[%emt 0:01:21]} 27. Qg2 {[%emt 0:03:22]} Bf6 {[%emt 0:04:54]} 28. Ng4 {[%emt 0:03:05]} Nh7 {[%emt 0:01:44]} 29. h4 {[%emt 0:05:17]} Be7 {[%emt 0:06:13]} 30. Ne5 {[%emt 0:03:24]} Bf6 {[%emt 0:01:02]} 31. f4 {[%emt 0:03:34]} Nf8 {[%emt 0:00:58]} 32. Qe4 {[%emt 0:01:44]} Nfd7 {[%emt 0:01:16]} 33. Re1 {[%emt 0:01:35]} Re8 {[%emt 0:02:03]} 34. Rh2 {[%emt 0:02:09]} Rad8 {[%emt 0:02:06]} 35. h5 {[%emt 0:02:18]} g5 {[%emt 0:03:09]} 36. h6 {[%emt 0:01:35]} Bxe5 {[%emt 0:00:40]} 37. fxe5 {[%emt 0:01:22]} g6 {[%emt 0:00:47]} 38. Qf3 {[%emt 0:01:11]} g4 {[%emt 0:00:46]} 39. Qxg4 {[%emt 0:00:16]} Nf8 {[%emt 0:00:13]} 40. Bb4 {[%emt 0:02:47]} Nh7 {[%emt 0:00:46]} 41. Bd6 {[%emt 0:31:03]} Qd7 {[%emt 0:02:35]} 42. Rf1 {[%emt 0:00:00]} Nc8 {[%emt 0:04:21]} 43. c5 {[%emt 0:00:00]} Ne7 {[%emt 0:01:57]} 44. Bb1 {[%emt 0:00:00]} Nf5 {[%emt 0:01:31]} 45. Rf3 {[%emt 0:00:00]} Kh8 {[%emt 0:03:49]} 46. Qf4 {[%emt 0:00:00]} Kg8 {[%emt 0:02:48]} 47. Kg2 {[%emt 0:00:00]} b6 {[%emt 0:03:29]} 48. Kg1 {[%emt 0:00:00]} bxc5 {[%emt 0:00:48]} 49. dxc5 {[%emt 0:00:00]} Qa7 {[%emt 0:01:00]} 50. Bxf5 {[%emt 0:01:45]} exf5 {[%emt 0:00:11]} 51. Rhf2 {[%emt 0:01:08]} Rd7 {[%emt 0:01:07]} 52. g4 {[%emt 0:03:57]} fxg4 {[%emt 0:03:07]} 53. Qxg4 {[%emt 0:00:08]} Kh8 {[%emt 0:04:07]} 54. Rf4 {[%emt 0:04:38]} Qb7 {[%emt 0:01:42]} 55. Rb4 {[%emt 0:00:23]} Qa7 {[%emt 0:01:18]} 56. Rxa4 {[%emt 0:03:58]} Qb7 {[%emt 0:00:10]} 57. Rb4 {[%emt 0:00:13]} Qa7 {[%emt 0:00:07]} 58. e6 {[%emt 0:00:55]} fxe6 {[%emt 0:02:45]} 59. Be5+ {[%emt 0:00:11]} 1-0

[Event "44th Chess Olympiad Women 2022"]
[Site "Chennai"]
[Date "2022.08.02"]
[Round "5.25"]
[White "Verbin, Valentina"]
[Black "Ryjanova, Julia"]
[Result "0-1"]
[ECO "B12"]
[WhiteElo "2069"]
[BlackElo "2284"]
[Annotator "RC"]
[PlyCount "110"]
[EventDate "2022.07.29"]
[EventType "team-tourn"]
[EventCountry "IND"]
[SourceTitle "playchess.com"]
[Source "ChessBase"]
[SourceQuality "1"]
[WhiteTeam "Moldova"]
[BlackTeam "Australia"]
[WhiteTeamCountry "MDA"]
[BlackTeamCountry "AUS"]
[TimeControl "40/5400+30:1800+30"]

1. e4 {[%emt 0:00:05]} c6 {[%emt 0:00:07]} 2. d4 {[%emt 0:00:17]} d5 {[%emt 0:00:10]} 3. e5 {[%emt 0:00:21]} Bf5 {[%emt 0:00:25]} 4. Nf3 {[%emt 0:00:50]} e6 {[%emt 0:00:12]} 5. Be2 {[%emt 0:00:24]} Nd7 {[%emt 0:00:17]} 6. O-O {[%emt 0:00:35]} h6 {[%emt 0:00:12]} 7. a4 {[%emt 0:00:50]} a5 {[%emt 0:17:29]} 8. b3 {[%emt 0:01:07]} Ne7 {[%emt 0:16:20]} 9. Na3 {[%emt 0:01:03]} Ng6 {[%emt 0:11:08]} 10. c3 {[%emt 0:06:46]} f6 {[%emt 0:09:34]} 11. Bd3 {[%emt 0:20:53]} Bxd3 {[%emt 0:01:39]} 12. Qxd3 {[%emt 0:00:05]} Kf7 {[%emt 0:02:07]} 13. Re1 {[%emt 0:08:26]} fxe5 {[%emt 0:03:01]} 14. Nxe5+ {[%emt 0:14:48]} Ngxe5 {[%emt 0:00:31]} 15. dxe5 {[%emt 0:00:09]} Bc5 {[%emt 0:00:37]} 16. Qf3+ {[%emt 0:03:24]} Kg8 {[%emt 0:01:02]} 17. Qh3 {[%emt 0:11:08]} Qe7 {[%emt 0:01:21]} 18. Nc2 {[%emt 0:02:15]} Re8 {[%emt 0:01:03]} 19. Be3 {[%emt 0:02:28]} Kh7 {[%emt 0:02:08]} 20. Bxc5 {[%emt 0:04:30]} Nxc5 {[%emt 0:01:26]} 21. b4 {[%emt 0:00:15]} axb4 {[%emt 0:05:48]} 22. cxb4 {[%emt 0:00:03]} Nd7 {[%emt 0:00:10]} 23. Qd3+ {[%emt 0:02:10]} g6 {[%emt 0:00:42]} 24. f4 {[%emt 0:01:23]} Rhf8 {[%emt 0:01:17]} 25. g3 {[%emt 0:01:36]} Kg7 {[%emt 0:00:43]} 26. Kg2 {[%emt 0:00:44]} Rc8 {[%emt 0:07:30]} 27. Nd4 {[%emt 0:04:58]} Qf7 {[%emt 0:01:34]} 28. Qf3 {[%emt 0:02:56]} Rfe8 {[%emt 0:07:05]} 29. a5 {[%emt 0:02:47]} Nb8 {[%emt 0:01:33]} 30. Rab1 {[%emt 0:00:54]} Re7 {[%emt 0:03:27]} 31. g4 {[%emt 0:00:55]} Rf8 {[%emt 0:00:27]} 32. Rf1 {[%emt 0:00:55]} Qe8 {[%emt 0:01:07]} 33. Qg3 {[%emt 0:01:43]} Kh7 {[%emt 0:00:37]} 34. h4 {[%emt 0:02:12]} Nd7 {[%emt 0:00:35]} 35. Qd3 {[%emt 0:01:01]} Kg8 {[%emt 0:01:22]} 36. Kh2 {[%emt 0:01:46]} Rg7 {[%emt 0:00:22]} 37. Qe3 {[%emt 0:00:50]} Rgf7 {[%emt 0:01:37]} 38. Kg3 {[%emt 0:00:36]} Rg7 {[%emt 0:00:45]} 39. Kh3 {[%emt 0:00:54]} Kh7 {[%emt 0:00:27]} 40. Qd3 {[%emt 0:00:37]} Kh8 {[%emt 0:00:26]} 41. Rbe1 {[%emt 0:11:46]} c5 {[%emt 0:03:08]} 42. bxc5 {[%emt 0:02:58]} Nxc5 {[%emt 0:00:06]} 43. Qa3 {[%emt 0:00:05]} Qe7 {[%emt 0:05:36]} 44. Rb1 {[%emt 0:07:22]} h5 {[%emt 0:11:53]} 45. Rb5 {[%emt 0:04:45]} hxg4+ {[%emt 0:01:17]} 46. Kxg4 {[%emt 0:00:08]} Rh7 {[%emt 0:00:57]} 47. Rh1 {[%emt 0:04:09]} Rxf4+ {[%emt 0:09:03]} 48. Kxf4 {[%emt 0:00:15]} Rxh4+ {[%emt 0:00:02]} 49. Kf3 {[%emt 0:02:07]} Rxh1 {[%emt 0:00:36]} 50. Qxc5 {[%emt 0:00:07]} Qf7+ {[%emt 0:00:17]} 51. Ke3 {[%emt 0:01:16]} Rh3+ {[%emt 0:00:44]} 52. Kd2 {[%emt 0:00:57]} Qf4+ {[%emt 0:01:09]} 53. Ke2 {[%emt 0:00:54]} Rh2+ {[%emt 0:00:30]} 54. Ke1 {[%emt 0:00:28]} Qd2+ {[%emt 0:00:17]} 55. Kf1 {[%emt 0:00:06]} Qf2# {[%emt 0:00:16]} 0-1

[Event "44th Chess Olympiad Women 2022"]
[Site "Chennai"]
[Date "2022.08.02"]
[Round "5.25"]
[White "Petrenko, Svetlana"]
[Black "Phan, Nguyen Mai Chi"]
[Result "1/2-1/2"]
[ECO "D12"]
[WhiteElo "2029"]
[BlackElo "2139"]
[Annotator "NA RC"]
[PlyCount "119"]
[EventDate "2022.07.29"]
[EventType "team-tourn"]
[EventCountry "IND"]
[SourceTitle "playchess.com"]
[Source "ChessBase"]
[SourceQuality "1"]
[WhiteTeam "Moldova"]
[BlackTeam "Australia"]
[WhiteTeamCountry "MDA"]
[BlackTeamCountry "AUS"]
[TimeControl "40/5400+30:1800+30"]

1. Nf3 {[%emt 0:00:07]} d5 {[%emt 0:00:12]} 2. b3 {[%emt 0:00:57]} c6 {[%emt 0:02:31]} 3. Bb2 {[%emt 0:00:10]} Bf5 {[%emt 0:00:23]} 4. e3 {[%emt 0:02:23]} e6 {[%emt 0:02:13]} 5. c4 {[%emt 0:01:23]} Nd7 {[%emt 0:01:28]} 6. d4 {[%emt 0:00:50]} h6 {[%emt 0:02:45]} 7. Nc3 {[%emt 0:01:39]} Ngf6 {[%emt 0:05:37]} 8. Bd3 {[%emt 0:01:34]} Bxd3 {[%emt 0:04:34]} 9. Qxd3 {[%emt 0:00:05]} Bd6 {[%emt 0:00:35]} 10. O-O {[%emt 0:00:58]} O-O {[%emt 0:01:02]} 11. e4 {[%emt 0:11:39]} dxe4 {[%emt 0:02:14]} 12. Nxe4 {[%emt 0:00:06]} Nxe4 {[%emt 0:01:52]} 13. Qxe4 {[%emt 0:00:03]} Nf6 {[%emt 0:03:34]} 14. Qh4 {[%emt 0:04:09]} Qe7 {[%emt 0:08:05]} 15. Rad1 {[%emt 0:05:54]} a5 {[%emt 0:07:47]} 16. a4 {[%emt 0:08:09]} Rfd8 {[%emt 0:08:25]} 17. Rfe1 {[%emt 0:05:07]} Ba3 {[%emt 0:11:07]} 18. Ba1 {[%emt 0:00:36]} Bb4 {[%emt 0:10:36]} 19. Re3 {[%emt 0:04:26]} Rac8 {[%emt 0:01:56]} 20. Red3 {[%emt 0:06:12]} Kf8 {[%emt 0:05:57]} 21. Ne5 {[%emt 0:13:33]} Nd7 {[%emt 0:04:27]} 22. Nxd7+ {[%emt 0:07:23]} Rxd7 {[%emt 0:00:57]} 23. Qg4 {[%emt 0:00:43]} Qg5 {[%emt 0:01:13]} 24. Qe4 {[%emt 0:01:09]} Qf5 {[%emt 0:07:10]} 25. Qe2 {[%emt 0:00:40]} Bd6 {[%emt 0:01:00]} 26. Bc3 {[%emt 0:02:52]} Bc7 {[%emt 0:01:34]} 27. Rf3 {[%emt 0:03:53]} Qh5 {[%emt 0:00:29]} 28. h3 {[%emt 0:00:05]} Qg6 {[%emt 0:01:04]} 29. h4 {[%emt 0:10:16]} Kg8 {[%emt 0:01:10]} 30. g3 {[%emt 0:00:55]} Rcd8 {[%emt 0:01:05]} 31. Re1 {[%emt 0:00:51]} Qg4 {[%emt 0:01:07]} 32. Re3 {[%emt 0:02:19]} Qxe2 {[%emt 0:00:59]} 33. R1xe2 {[%emt 0:00:23]} b5 {[%emt 0:01:03]} 34. axb5 {[%emt 0:01:44]} cxb5 {[%emt 0:00:03]} 35. c5 {[%emt 0:01:34]} b4 {[%emt 0:00:43]} 36. Bb2 {[%emt 0:00:02]} Rxd4 {[%emt 0:00:37]} 37. Bxd4 {[%emt 0:00:06]} Rxd4 {[%emt 0:00:02]} 38. Kg2 {[%emt 0:02:21]} Kf8 {[%emt 0:00:21]} 39. Re4 {[%emt 0:00:56]} Rd3 {[%emt 0:00:16]} 40. R2e3 {[%emt 0:00:07]} Rd5 {[%emt 0:01:04]} 41. Rc4 {[%emt 0:30:25]} Ke7 {[%emt 0:30:13]} 42. Ree4 {[%emt 0:00:56]} e5 {[%emt 0:00:00]} 43. g4 {[%emt 0:00:00]} Kd7 {[%emt 0:00:00]} 44. g5 {[%emt 0:00:00]} h5 {[%emt 0:00:00]} 45. f4 {[%emt 0:00:00]} Kc6 {[%emt 0:00:00]} 46. fxe5 {[%emt 0:00:00]} Bxe5 {[%emt 0:00:00]} 47. Re3 {[%emt 0:00:00]} f6 {[%emt 0:00:00]} 48. Kf3 {[%emt 0:00:00]} Rd7 {[%emt 0:00:04]} 49. Ke4 {[%emt 0:00:00]} Rb7 {[%emt 0:00:36]} 50. Kf5 {[%emt 0:00:00]} a4 {[%emt 0:01:22]} 51. bxa4 {[%emt 0:00:00]} b3 {[%emt 0:00:04]} 52. Re1 {[%emt 0:00:00]} b2 {[%emt 0:00:34]} 53. Rb1 {[%emt 0:00:00]} Rb3 {[%emt 0:01:52]} 54. Rc2 {[%emt 0:01:19]} Rb4 {[%emt 0:01:27]} 55. a5 {[%emt 0:01:03]} Rxh4 {[%emt 0:00:50]} 56. Rbxb2 {[%emt 0:02:11]} Rf4+ {[%emt 0:01:00]} 57. Kg6 {[%emt 0:00:04]} Bxb2 {[%emt 0:00:37]} 58. Rxb2 {[%emt 0:00:01]} Ra4 {[%emt 0:00:48]} 59. gxf6 {[%emt 0:00:27]} gxf6 {[%emt 0:00:05]} 60. Kxh5 {[%emt 0:00:36]} 1/2-1/2

[Event "44th Chess Olympiad Women 2022"]
[Site "Chennai"]
[Date "2022.08.02"]
[Round "5.26"]
[White "Mona, Khaled"]
[Black "Ramirez, Maria Eugenia"]
[Result "0-1"]
[ECO "A47"]
[WhiteElo "2127"]
[BlackElo "2005"]
[Annotator "NA RC"]
[PlyCount "110"]
[EventDate "2022.07.29"]
[EventType "team-tourn"]
[EventCountry "IND"]
[SourceTitle "playchess.com"]
[Source "ChessBase"]
[SourceQuality "1"]
[WhiteTeam "Egypt"]
[BlackTeam "Bolivia"]
[WhiteTeamCountry "EGY"]
[BlackTeamCountry "BOL"]
[TimeControl "40/5400+30:1800+30"]

1. d4 {[%emt 0:00:16]} Nf6 {[%emt 0:00:06]} 2. Nf3 {[%emt 0:00:05]} e6 {[%emt 0:00:10]} 3. e3 {[%emt 0:00:06]} c5 {[%emt 0:00:24]} 4. Bd3 {[%emt 0:00:05]} Be7 {[%emt 0:01:21]} 5. O-O {[%emt 0:00:11]} Nc6 {[%emt 0:00:37]} 6. a3 {[%emt 0:00:13]} O-O {[%emt 0:00:29]} 7. b3 {[%emt 0:00:04]} b6 {[%emt 0:02:45]} 8. Bb2 {[%emt 0:00:10]} Bb7 {[%emt 0:00:36]} 9. Nbd2 {[%emt 0:00:18]} Ne8 {[%emt 0:07:19]} 10. Qe2 {[%emt 0:00:28]} d6 {[%emt 0:03:38]} 11. c4 {[%emt 0:01:01]} Bf6 {[%emt 0:03:49]} 12. Ne4 {[%emt 0:01:24]} Be7 {[%emt 0:02:56]} 13. Rad1 {[%emt 0:00:08]} cxd4 {[%emt 0:00:42]} 14. exd4 {[%emt 0:00:06]} d5 {[%emt 0:05:02]} 15. Ng3 {[%emt 0:07:34]} g6 {[%emt 0:02:57]} 16. cxd5 {[%emt 0:02:29]} exd5 {[%emt 0:00:35]} 17. Ne5 {[%emt 0:00:57]} Ng7 {[%emt 0:08:42]} 18. Rfe1 {[%emt 0:16:28]} Bg5 {[%emt 0:07:29]} 19. Bb1 {[%emt 0:05:54]} f5 {[%emt 0:08:30]} 20. b4 {[%emt 0:05:13]} f4 {[%emt 0:08:35]} 21. Ne4 {[%emt 0:13:37]} f3 {[%emt 0:06:36]} 22. Nxf3 {[%emt 0:12:18]} dxe4 {[%emt 0:01:56]} 23. Bxe4 {[%emt 0:00:05]} Rc8 {[%emt 0:10:31]} 24. d5 {[%emt 0:05:39]} Nb8 {[%emt 0:00:15]} 25. d6 {[%emt 0:01:20]} Bc6 {[%emt 0:04:44]} 26. Bxc6 {[%emt 0:15:34]} Rxc6 {[%emt 0:00:13]} 27. Bxg7 {[%emt 0:00:25]} Kxg7 {[%emt 0:09:47]} 28. Nd4 {[%emt 0:00:10]} Rxd6 {[%emt 0:01:34]} 29. Qe5+ {[%emt 0:06:44]} Qf6 {[%emt 0:01:08]} 30. Nf5+ {[%emt 0:01:17]} gxf5 {[%emt 0:00:11]} 31. Qxd6 {[%emt 0:00:05]} Qxd6 {[%emt 0:00:41]} 32. Rxd6 {[%emt 0:00:04]} Bf6 {[%emt 0:00:32]} 33. f4 {[%emt 0:01:20]} Rf7 {[%emt 0:00:25]} 34. Red1 {[%emt 0:00:34]} Be7 {[%emt 0:00:36]} 35. Re6 {[%emt 0:00:22]} Bf6 {[%emt 0:00:25]} 36. Rd5 {[%emt 0:01:15]} Bb2 {[%emt 0:00:26]} 37. Re3 {[%emt 0:02:39]} Nc6 {[%emt 0:00:42]} 38. Rg3+ {[%emt 0:00:28]} Kf8 {[%emt 0:00:20]} 39. Rd2 {[%emt 0:01:11]} Bd4+ {[%emt 0:00:14]} 40. Kf1 {[%emt 0:00:08]} Bf6 {[%emt 0:02:10]} 41. Rd5 {[%emt 0:31:00]} Be7 {[%emt 0:10:10]} 42. Rc3 {[%emt 0:00:00]} Rf6 {[%emt 0:04:47]} 43. b5 {[%emt 0:00:00]} Na5 {[%emt 0:01:56]} 44. Rd7 {[%emt 0:00:00]} Re6 {[%emt 0:01:49]} 45. Rxa7 {[%emt 0:00:00]} Re4 {[%emt 0:00:19]} 46. g3 {[%emt 0:00:00]} Nc4 {[%emt 0:00:20]} 47. a4 {[%emt 0:00:00]} h5 {[%emt 0:01:50]} 48. Rd3 {[%emt 0:00:00]} h4 {[%emt 0:01:39]} 49. Kf2 {[%emt 0:00:00]} h3 {[%emt 0:01:48]} 50. Rdd7 {[%emt 0:00:00]} Bc5+ {[%emt 0:01:38]} 51. Kf1 {[%emt 0:00:00]} Ke8 {[%emt 0:03:54]} 52. Rac7 {[%emt 0:00:00]} Ne3+ {[%emt 0:01:06]} 53. Ke2 {[%emt 0:00:00]} Nd5+ {[%emt 0:00:47]} 54. Kd3 {[%emt 0:00:00]} Rd4+ {[%emt 0:00:12]} 55. Kc2 {[%emt 0:00:00]} Ne3+ {[%emt 0:01:22]} 0-1

[Event "44th Chess Olympiad Women 2022"]
[Site "Chennai"]
[Date "2022.08.02"]
[Round "5.26"]
[White "Wafa, Shahenda"]
[Black "Coro, Soledad"]
[Result "1-0"]
[ECO "C42"]
[WhiteElo "2115"]
[BlackElo "1623"]
[Annotator "NA RC"]
[PlyCount "67"]
[EventDate "2022.07.29"]
[EventType "team-tourn"]
[EventCountry "IND"]
[SourceTitle "playchess.com"]
[Source "ChessBase"]
[SourceQuality "1"]
[WhiteTeam "Egypt"]
[BlackTeam "Bolivia"]
[WhiteTeamCountry "EGY"]
[BlackTeamCountry "BOL"]
[TimeControl "40/5400+30:1800+30"]

1. e4 {[%emt 0:00:06]} e5 {[%emt 0:00:07]} 2. Nf3 {[%emt 0:00:08]} Nf6 {[%emt 0:00:08]} 3. Nxe5 {[%emt 0:00:40]} d6 {[%emt 0:00:05]} 4. Nf3 {[%emt 0:00:33]} Nxe4 {[%emt 0:00:07]} 5. Nc3 {[%emt 0:00:19]} Nxc3 {[%emt 0:03:08]} 6. dxc3 {[%emt 0:00:06]} Be7 {[%emt 0:04:38]} 7. Be3 {[%emt 0:01:37]} Nc6 {[%emt 0:00:20]} 8. Qd2 {[%emt 0:01:21]} Bg4 {[%emt 0:22:46]} 9. Be2 {[%emt 0:01:17]} Qd7 {[%emt 0:07:12]} 10. h3 {[%emt 0:03:06]} Bxf3 {[%emt 0:12:29]} 11. Bxf3 {[%emt 0:00:07]} a6 {[%emt 0:00:21]} 12. O-O-O {[%emt 0:00:58]} O-O-O {[%emt 0:03:50]} 13. Qd5 {[%emt 0:02:29]} Kb8 {[%emt 0:14:31]} 14. Qxf7 {[%emt 0:07:50]} Ne5 {[%emt 0:00:13]} 15. Qxg7 {[%emt 0:05:11]} Rdg8 {[%emt 0:19:19]} 16. Qxe5 {[%emt 0:00:26]} h6 {[%emt 0:06:53]} 17. Qe4 {[%emt 0:01:21]} c6 {[%emt 0:00:18]} 18. Qd4 {[%emt 0:00:52]} b5 {[%emt 0:02:05]} 19. Qb6+ {[%emt 0:00:43]} Qb7 {[%emt 0:00:11]} 20. Bxc6 {[%emt 0:00:34]} Qxb6 {[%emt 0:00:06]} 21. Bxb6 {[%emt 0:00:06]} Rc8 {[%emt 0:00:31]} 22. Bd5 {[%emt 0:00:22]} Bg5+ {[%emt 0:00:47]} 23. Kb1 {[%emt 0:00:11]} Rhf8 {[%emt 0:00:53]} 24. h4 {[%emt 0:00:34]} Bd8 {[%emt 0:00:21]} 25. Be3 {[%emt 0:00:19]} h5 {[%emt 0:00:53]} 26. a4 {[%emt 0:00:15]} bxa4 {[%emt 0:00:39]} 27. Rd4 {[%emt 0:00:12]} Ba5 {[%emt 0:00:18]} 28. Rxa4 {[%emt 0:00:19]} Bxc3 {[%emt 0:00:27]} 29. bxc3 {[%emt 0:00:16]} Rxc3 {[%emt 0:00:04]} 30. Rxa6 {[%emt 0:00:37]} Kc7 {[%emt 0:00:19]} 31. Ra7+ {[%emt 0:00:18]} Kd8 {[%emt 0:00:26]} 32. Bg5+ {[%emt 0:00:24]} Ke8 {[%emt 0:00:53]} 33. Re1+ {[%emt 0:00:10]} Re3 {[%emt 0:00:27]} 34. Bc6# {[%emt 0:00:12]} 1-0